[Event "*** Titled Tuesday 3|2 Blitz"]
[Site "Chess.com"]
[Date "2015.11.03"]
[Round "3"]
[White "MITerryble"]
[Black "yurisolo"]
[Result "1-0"]
[WhiteElo "2591"]
[BlackElo "2482"]
[TimeControl "180+2"]
[EndTime "11:35:09 PST"]
[Termination "MITerryble won on time"]

1. d4 {[%clk 0:02:57.8]} 1... Nf6 {[%clk 0:02:59.9]} 2. Nf3 {[%clk 0:02:58.8]}
2... c5 {[%clk 0:03:01]} 3. d5 {[%clk 0:02:59.9]} 3... b5 {[%clk 0:03:02.2]} 4.
Bg5 {[%clk 0:03:00.4]} 4... Qb6 {[%clk 0:03:03.7]} 5. Bxf6 {[%clk 0:03:01.5]}
5... Qxf6 {[%clk 0:03:05.6]} 6. c3 {[%clk 0:03:03.3]} 6... d6 {[%clk 0:03:03.1]}
7. e4 {[%clk 0:03:04.2]} 7... a6 {[%clk 0:03:01.2]} 8. Nbd2 {[%clk 0:02:53.4]}
8... g5 {[%clk 0:03:01.4]} 9. a4 {[%clk 0:02:26.5]} 9... g4 {[%clk 0:03:00.9]}
10. Ng1 {[%clk 0:02:27]} 10... b4 {[%clk 0:02:50.2]} 11. Rc1 {[%clk 0:02:26.5]}
11... bxc3 {[%clk 0:02:48.5]} 12. bxc3 {[%clk 0:02:28.4]} 12... Nd7 {[%clk
0:02:43.5]} 13. a5 {[%clk 0:02:29.4]} 13... Bh6 {[%clk 0:02:39.5]} 14. Ne2
{[%clk 0:02:23.2]} 14... Ne5 {[%clk 0:02:26.4]} 15. Ng3 {[%clk 0:02:22.9]} 15...
Bg5 {[%clk 0:02:22.8]} 16. Rb1 {[%clk 0:02:09.9]} 16... h5 {[%clk 0:02:23]} 17.
Qc2 {[%clk 0:01:54.3]} 17... h4 {[%clk 0:01:56.1]} 18. Nf5 {[%clk 0:01:55.4]}
18... h3 {[%clk 0:01:52.9]} 19. gxh3 {[%clk 0:01:40.1]} 19... gxh3 {[%clk
0:01:47]} 20. Nc4 {[%clk 0:01:32.4]} 20... Bxf5 {[%clk 0:01:30.3]} 21. exf5
{[%clk 0:01:33]} 21... Rh4 {[%clk 0:01:31.9]} 22. Nb6 {[%clk 0:01:29.4]} 22...
Nf3+ {[%clk 0:00:40.2]} 23. Kd1 {[%clk 0:01:30.3]} 23... Ra7 {[%clk 0:00:41.2]}
24. Be2 {[%clk 0:01:26.1]} 24... Ne5 {[%clk 0:00:34.3]} 25. Nc8 {[%clk
0:01:16.8]} 25... Ra8 {[%clk 0:00:29.5]} 26. Nb6 {[%clk 0:01:17.5]} 26... Ra7
{[%clk 0:00:30.4]} 27. Rg1 {[%clk 0:01:12.6]} 27... Kf8 {[%clk 0:00:28.8]} 28.
Nc8 {[%clk 0:01:03.6]} 28... Rc7 {[%clk 0:00:28.9]} 29. Rb8 {[%clk 0:01:02]}
29... Kg7 {[%clk 0:00:29.9]} 30. Nb6 {[%clk 0:00:42.4]} 30... c4 {[%clk
0:00:27.5]} 31. Qd2 {[%clk 0:00:20.7]} 31... Ng4 {[%clk 0:00:02.5]} 32. f4
{[%clk 0:00:21.1]} 32... Nf2+ {[%clk 0:00:02.4]} 33. Ke1 {[%clk 0:00:21.4]}
33... Ne4 {[%clk 0:00:03.4]} 34. Qe3 {[%clk 0:00:18]} 34... Qxf5 {[%clk
0:00:04.7]} 35. fxg5 {[%clk 0:00:18.4]} 35... Rc5 {[%clk 0:00:05.9]} 36. Qd4+
{[%clk 0:00:18.1]} 36... f6 {[%clk 0:00:04.8]} 37. gxf6+ {[%clk 0:00:18.4]}
37... Kh7 {[%clk 0:00:06.2]} 38. Rg7+ {[%clk 0:00:16.6]} 38... Kh6 {[%clk
0:00:07.4]} 39. Rh8+ {[%clk 0:00:17.4]} 1-0

[Event "*** Titled Tuesday 3|2 Blitz"]
[Site "Chess.com"]
[Date "2015.11.03"]
[Round "3"]
[White "oggy1984"]
[Black "AlexanderL"]
[Result "0-1"]
[WhiteElo "2271"]
[BlackElo "2549"]
[TimeControl "180+2"]
[EndTime "11:35:18 PST"]
[Termination "AlexanderL won on time"]

1. d4 {[%clk 0:03:01.9]} 1... e6 {[%clk 0:03:01.9]} 2. c4 {[%clk 0:03:00.1]}
2... Nf6 {[%clk 0:03:01.8]} 3. Nc3 {[%clk 0:03:00.4]} 3... Bb4 {[%clk
0:03:01.8]} 4. Qc2 {[%clk 0:03:01]} 4... d5 {[%clk 0:03:00.7]} 5. cxd5 {[%clk
0:02:58.9]} 5... exd5 {[%clk 0:03:01.4]} 6. Bg5 {[%clk 0:02:56]} 6... h6 {[%clk
0:03:01.6]} 7. Bxf6 {[%clk 0:02:53.5]} 7... Qxf6 {[%clk 0:03:03.5]} 8. e3 {[%clk
0:02:54.1]} 8... O-O {[%clk 0:03:03.8]} 9. Bd3 {[%clk 0:02:53.2]} 9... c5 {[%clk
0:03:04.3]} 10. dxc5 {[%clk 0:02:32.8]} 10... d4 {[%clk 0:02:58.2]} 11. exd4
{[%clk 0:02:30.3]} 11... Qxd4 {[%clk 0:02:58.7]} 12. Ne2 {[%clk 0:02:20.6]}
12... Qxc5 {[%clk 0:02:59.7]} 13. a3 {[%clk 0:02:18.5]} 13... Bxc3+ {[%clk
0:03:00.8]} 14. Qxc3 {[%clk 0:02:16.8]} 14... Qb6 {[%clk 0:03:02.2]} 15. O-O
{[%clk 0:02:12.6]} 15... Nc6 {[%clk 0:03:03]} 16. Bc2 {[%clk 0:01:41.5]} 16...
Re8 {[%clk 0:03:01.4]} 17. Qd3 {[%clk 0:01:37.9]} 17... g6 {[%clk 0:02:56.6]}
18. Nf4 {[%clk 0:01:06.7]} 18... Bf5 {[%clk 0:02:55.2]} 19. Qc3 {[%clk
0:01:04.6]} 19... Bxc2 {[%clk 0:02:50.3]} 20. Qxc2 {[%clk 0:01:06.5]} 20... Nd4
{[%clk 0:02:51.7]} 21. Qd3 {[%clk 0:00:16]} 21... Rad8 {[%clk 0:02:51.3]} 22.
Rfe1 {[%clk 0:00:11.1]} 22... Qxb2 {[%clk 0:02:17.4]} 23. Rxe8+ {[%clk
0:00:06.7]} 23... Rxe8 {[%clk 0:02:18.6]} 24. Rd1 {[%clk 0:00:07.2]} 24... Ne2+
{[%clk 0:02:17.1]} 25. Nxe2 {[%clk 0:00:07.2]} 25... Qxe2 {[%clk 0:02:18.8]} 26.
Qxe2 {[%clk 0:00:07.5]} 26... Rxe2 {[%clk 0:02:19.2]} 27. g3 {[%clk 0:00:08.9]}
27... Rb2 {[%clk 0:02:16.2]} 28. Rd7 {[%clk 0:00:09.5]} 28... a5 {[%clk
0:02:15.5]} 29. a4 {[%clk 0:00:09.6]} 29... b6 {[%clk 0:02:14.3]} 30. Rb7 {[%clk
0:00:09.3]} 30... g5 {[%clk 0:02:12.6]} 31. h3 {[%clk 0:00:09.9]} 31... Kg7
{[%clk 0:02:12.4]} 32. Kg2 {[%clk 0:00:11.2]} 32... Rb3 {[%clk 0:02:12.1]} 33.
g4 {[%clk 0:00:07.5]} 33... Kf6 {[%clk 0:02:13.2]} 34. Kh2 {[%clk 0:00:07.8]}
34... Rb4 {[%clk 0:02:12.1]} 35. Kg2 {[%clk 0:00:08.1]} 35... Ke6 {[%clk
0:02:13.2]} 36. Kg3 {[%clk 0:00:08.6]} 36... f6 {[%clk 0:02:14.6]} 37. f3 {[%clk
0:00:09]} 37... Kd5 {[%clk 0:02:13.9]} 38. Rf7 {[%clk 0:00:05.9]} 38... Rf4
{[%clk 0:02:14.5]} 39. Rb7 {[%clk 0:00:03]} 39... Kc5 {[%clk 0:02:14.1]} 40. Rh7
{[%clk 0:00:03.2]} 40... Rxa4 {[%clk 0:02:10]} 41. Rxh6 {[%clk 0:00:04.7]} 41...
Rd4 {[%clk 0:02:02.2]} 42. Rxf6 {[%clk 0:00:04.6]} 42... a4 {[%clk 0:02:03.7]}
43. Rf5+ {[%clk 0:00:04]} 43... Rd5 {[%clk 0:02:02.3]} 44. Rf8 {[%clk
0:00:04.3]} 44... a3 {[%clk 0:02:02.9]} 45. h4 {[%clk 0:00:02.1]} 45... gxh4+
{[%clk 0:02:03]} 46. Kxh4 {[%clk 0:00:02.1]} 46... Kb4 {[%clk 0:02:03.1]} 47.
Ra8 {[%clk 0:00:04]} 47... Ra5 {[%clk 0:02:02.3]} 48. Rc8 {[%clk 0:00:05]} 48...
a2 {[%clk 0:02:02.8]} 49. Rc1 {[%clk 0:00:06.4]} 49... a1=Q {[%clk 0:02:01.5]}
50. Rxa1 {[%clk 0:00:08.3]} 50... Rxa1 {[%clk 0:02:03.4]} 51. g5 {[%clk
0:00:09.3]} 51... Rg1 {[%clk 0:02:00.8]} 52. f4 {[%clk 0:00:10]} 52... Kc5
{[%clk 0:02:02]} 53. f5 {[%clk 0:00:11.2]} 53... Kd6 {[%clk 0:01:58.3]} 54. f6
{[%clk 0:00:08.4]} 54... Ke6 {[%clk 0:01:59.2]} 55. Kh5 {[%clk 0:00:09]} 55...
Kf7 {[%clk 0:01:59.5]} 0-1

[Event "*** Titled Tuesday 3|2 Blitz"]
[Site "Chess.com"]
[Date "2015.11.03"]
[Round "3"]
[White "jcibarra"]
[Black "igorkovalenko"]
[Result "1-0"]
[WhiteElo "2522"]
[BlackElo "2490"]
[TimeControl "180+2"]
[EndTime "11:35:28 PST"]
[Termination "jcibarra won by resignation"]

1. e4 {[%clk 0:03:01.9]} 1... e6 {[%clk 0:03:00.7]} 2. d4 {[%clk 0:03:02.2]}
2... d5 {[%clk 0:03:02.6]} 3. Nc3 {[%clk 0:03:03.4]} 3... Bb4 {[%clk 0:03:03.4]}
4. Ne2 {[%clk 0:03:04.3]} 4... dxe4 {[%clk 0:03:03.2]} 5. a3 {[%clk 0:03:05]}
5... Bxc3+ {[%clk 0:03:04.6]} 6. Nxc3 {[%clk 0:03:04.9]} 6... Nc6 {[%clk
0:03:06.5]} 7. d5 {[%clk 0:03:06.1]} 7... exd5 {[%clk 0:03:08.4]} 8. Qxd5 {[%clk
0:03:07]} 8... Nge7 {[%clk 0:03:09.2]} 9. Qxd8+ {[%clk 0:03:06.7]} 9... Nxd8
{[%clk 0:03:11.1]} 10. Nxe4 {[%clk 0:03:05.1]} 10... Bf5 {[%clk 0:03:11.6]} 11.
Bd3 {[%clk 0:03:05.9]} 11... Ndc6 {[%clk 0:03:08.9]} 12. Bf4 {[%clk 0:02:59.6]}
12... O-O-O {[%clk 0:03:09.7]} 13. O-O-O {[%clk 0:02:58.7]} 13... Bg6 {[%clk
0:03:02.6]} 14. Rhe1 {[%clk 0:02:45.7]} 14... Nd5 {[%clk 0:03:00.2]} 15. Bg3
{[%clk 0:02:43.4]} 15... Rhe8 {[%clk 0:02:57.1]} 16. Nd6+ {[%clk 0:02:18.5]}
16... cxd6 {[%clk 0:02:57.5]} 17. Rxe8 {[%clk 0:02:19.4]} 17... Rxe8 {[%clk
0:02:59.2]} 18. Bxg6 {[%clk 0:02:20.7]} 18... hxg6 {[%clk 0:02:28.5]} 19. Rxd5
{[%clk 0:02:21.4]} 19... Re1+ {[%clk 0:02:29.9]} 20. Kd2 {[%clk 0:02:18.6]}
20... Rg1 {[%clk 0:02:30.6]} 21. Ke2 {[%clk 0:02:17.5]} 21... Ne7 {[%clk
0:02:27.8]} 22. Rxd6 {[%clk 0:02:13.6]} 22... Nf5 {[%clk 0:02:28.9]} 23. Rd1
{[%clk 0:02:09.7]} 23... Rxd1 {[%clk 0:02:25]} 24. Kxd1 {[%clk 0:02:10.1]} 24...
Kd7 {[%clk 0:02:26.6]} 25. Kd2 {[%clk 0:02:07.3]} 25... Kc6 {[%clk 0:02:27.7]}
26. f3 {[%clk 0:02:06.2]} 26... Kd5 {[%clk 0:02:27.6]} 27. Kd3 {[%clk
0:02:03.9]} 27... b5 {[%clk 0:02:28.4]} 28. b3 {[%clk 0:02:05.3]} 28... a6
{[%clk 0:02:29.6]} 29. Bf2 {[%clk 0:02:02.5]} 29... Nd6 {[%clk 0:02:27]} 30. Bg3
{[%clk 0:02:01.9]} 30... Nb7 {[%clk 0:02:23.9]} 31. c4+ {[%clk 0:02:02.5]} 31...
Kc6 {[%clk 0:02:22]} 32. b4 {[%clk 0:01:57.9]} 32... Nd8 {[%clk 0:02:15.7]} 33.
Bf2 {[%clk 0:01:53.9]} 33... Ne6 {[%clk 0:02:16.5]} 34. Be3 {[%clk 0:01:54.9]}
34... f5 {[%clk 0:02:16.5]} 35. f4 {[%clk 0:01:47.6]} 35... Kd6 {[%clk
0:02:16.3]} 36. g3 {[%clk 0:01:48.2]} 36... Kc6 {[%clk 0:02:17.4]} 37. Kc3
{[%clk 0:01:47.6]} 37... Kd6 {[%clk 0:02:18]} 38. Kb3 {[%clk 0:01:45.8]} 38...
Kc6 {[%clk 0:02:19.4]} 39. a4 {[%clk 0:01:45.6]} 39... Nc7 {[%clk 0:02:18.8]}
40. Bd4 {[%clk 0:01:40.9]} 40... Ne6 {[%clk 0:02:19.2]} 41. Be5 {[%clk
0:01:40.3]} 41... Kb6 {[%clk 0:02:20.4]} 42. cxb5 {[%clk 0:01:37.3]} 42... axb5
{[%clk 0:02:22.3]} 43. a5+ {[%clk 0:01:37.7]} 43... Kc6 {[%clk 0:02:23.1]} 44.
Kc3 {[%clk 0:01:38]} 44... Kb7 {[%clk 0:02:24.1]} 45. Bd4 {[%clk 0:01:37.5]}
45... Ka6 {[%clk 0:02:22.6]} 46. Kd3 {[%clk 0:01:36.5]} 46... Kb7 {[%clk
0:02:22.7]} 47. Be3 {[%clk 0:01:37.3]} 47... Ka6 {[%clk 0:02:22.2]} 48. Bd2
{[%clk 0:01:35.9]} 48... Kb7 {[%clk 0:02:23.1]} 49. Bc3 {[%clk 0:01:37.3]} 49...
Kc6 {[%clk 0:02:23.9]} 50. Ke3 {[%clk 0:01:37.2]} 50... Kd5 {[%clk 0:02:20.3]}
51. a6 {[%clk 0:01:32.5]} 51... Kc6 {[%clk 0:02:21.6]} 52. Bd4 {[%clk
0:01:29.3]} 52... Nc7 {[%clk 0:02:16.7]} 53. a7 {[%clk 0:01:29.7]} 53... Nd5+
{[%clk 0:02:15.5]} 54. Kf3 {[%clk 0:01:27.8]} 54... Kb7 {[%clk 0:02:14]} 55. Bc5
{[%clk 0:01:29.1]} 55... Nc7 {[%clk 0:02:09.9]} 56. h3 {[%clk 0:01:27.7]} 56...
Ne6 {[%clk 0:02:11.1]} 57. Be3 {[%clk 0:01:28.7]} 57... Ka8 {[%clk 0:02:10.9]}
58. g4 {[%clk 0:01:28.7]} 58... Kb7 {[%clk 0:02:11.5]} 59. h4 {[%clk 0:01:25.1]}
59... Ka8 {[%clk 0:02:10]} 60. gxf5 {[%clk 0:01:23.4]} 60... gxf5 {[%clk
0:02:10.7]} 61. h5 {[%clk 0:01:25]} 61... Kb7 {[%clk 0:02:11.4]} 62. Kg3 {[%clk
0:01:21.6]} 62... Ka8 {[%clk 0:02:11.2]} 63. Kh4 {[%clk 0:01:17.8]} 63... Kb7
{[%clk 0:02:12.6]} 64. Kg3 {[%clk 0:01:14.4]} 64... Ka8 {[%clk 0:02:13.5]} 65.
Bd2 {[%clk 0:01:16]} 65... Nd4 {[%clk 0:02:12.9]} 66. Kf2 {[%clk 0:01:05.1]}
66... Ne6 {[%clk 0:02:12]} 67. Ke3 {[%clk 0:01:01.7]} 67... Nf8 {[%clk
0:01:43.9]} 68. Kd4 {[%clk 0:00:55]} 68... Kxa7 {[%clk 0:01:43.5]} 69. Ke5
{[%clk 0:00:56.3]} 69... Kb6 {[%clk 0:01:40.8]} 70. Kxf5 {[%clk 0:00:56.5]}
70... Kc6 {[%clk 0:01:41.6]} 71. Bc3 {[%clk 0:00:57.6]} 1-0

[Event "*** Titled Tuesday 3|2 Blitz"]
[Site "Chess.com"]
[Date "2015.11.03"]
[Round "3"]
[White "vovkcoach"]
[Black "Krutoy123"]
[Result "0-1"]
[WhiteElo "2486"]
[BlackElo "2294"]
[TimeControl "180+2"]
[EndTime "11:35:28 PST"]
[Termination "Krutoy123 won by resignation"]

1. e4 {[%clk 0:02:51.9]} 1... c5 {[%clk 0:02:59.3]} 2. Nf3 {[%clk 0:02:52.8]}
2... e6 {[%clk 0:02:58.6]} 3. d4 {[%clk 0:02:54.7]} 3... cxd4 {[%clk 0:03:00.5]}
4. Nxd4 {[%clk 0:02:56.6]} 4... a6 {[%clk 0:03:01.4]} 5. Nc3 {[%clk 0:02:57.6]}
5... b5 {[%clk 0:03:01.9]} 6. Bd3 {[%clk 0:02:56.9]} 6... Bb7 {[%clk 0:03:03.1]}
7. O-O {[%clk 0:02:57.1]} 7... Qc7 {[%clk 0:03:01]} 8. Re1 {[%clk 0:02:57]} 8...
Bd6 {[%clk 0:03:00.3]} 9. Nf3 {[%clk 0:02:54.9]} 9... Be7 {[%clk 0:02:51.1]} 10.
e5 {[%clk 0:02:54]} 10... Nc6 {[%clk 0:02:51.1]} 11. Bf4 {[%clk 0:02:49.6]}
11... Nh6 {[%clk 0:02:51]} 12. Qd2 {[%clk 0:02:46.3]} 12... O-O-O {[%clk
0:02:33.1]} 13. a4 {[%clk 0:02:33.3]} 13... b4 {[%clk 0:02:31.9]} 14. Ne4 {[%clk
0:02:34]} 14... Nf5 {[%clk 0:02:26.9]} 15. c3 {[%clk 0:02:34.9]} 15... Kb8
{[%clk 0:02:20.6]} 16. Rec1 {[%clk 0:02:23.5]} 16... h6 {[%clk 0:02:11.5]} 17.
cxb4 {[%clk 0:02:19.4]} 17... Bxb4 {[%clk 0:02:08.8]} 18. Rxc6 {[%clk
0:01:59.2]} 18... Bxd2 {[%clk 0:02:08]} 19. Rxc7 {[%clk 0:02:00.7]} 19... Bxf4
{[%clk 0:02:09.9]} 20. Rxb7+ {[%clk 0:01:58.7]} 20... Kxb7 {[%clk 0:02:08.9]}
21. g4 {[%clk 0:02:00.6]} 21... d5 {[%clk 0:02:04.3]} 22. Nc5+ {[%clk 0:02:00]}
22... Kb6 {[%clk 0:02:04.3]} 23. Nxa6 {[%clk 0:01:51.9]} 23... Ne7 {[%clk
0:02:02.7]} 24. b4 {[%clk 0:01:40.6]} 24... Nc6 {[%clk 0:01:58.9]} 25. a5+
{[%clk 0:01:41.7]} 25... Ka7 {[%clk 0:01:59.1]} 26. b5 {[%clk 0:01:40.4]} 26...
Nxe5 {[%clk 0:01:57.8]} 27. b6+ {[%clk 0:01:40.9]} 27... Kb7 {[%clk 0:01:58]}
28. Nxe5 {[%clk 0:01:40.4]} 28... Bxe5 {[%clk 0:01:58.3]} 29. Rc1 {[%clk
0:01:42.3]} 29... Bd6 {[%clk 0:01:48.6]} 30. Nc7 {[%clk 0:01:35.5]} 30... Bb4
{[%clk 0:01:27]} 31. Ba6+ {[%clk 0:00:58.4]} 31... Kb8 {[%clk 0:01:27.3]} 32.
Ra1 {[%clk 0:00:58.3]} 32... Rd6 {[%clk 0:01:24.5]} 33. Bd3 {[%clk 0:00:54.5]}
33... Bxa5 {[%clk 0:01:01.1]} 34. Rxa5 {[%clk 0:00:49.2]} 34... Kb7 {[%clk
0:01:02.1]} 35. Na6 {[%clk 0:00:27.2]} 35... Rxb6 {[%clk 0:00:55.9]} 36. Nc5+
{[%clk 0:00:27.6]} 36... Kc6 {[%clk 0:00:56.6]} 37. Na4 {[%clk 0:00:28.1]} 37...
Rb4 {[%clk 0:00:49.9]} 38. Ra6+ {[%clk 0:00:28]} 38... Kc7 {[%clk 0:00:48.2]}
39. h3 {[%clk 0:00:29]} 39... Rhb8 {[%clk 0:00:45.9]} 40. Nc5 {[%clk 0:00:29.3]}
40... R8b6 {[%clk 0:00:41.3]} 41. Ra7+ {[%clk 0:00:29.2]} 41... Kd6 {[%clk
0:00:41.1]} 42. Na4 {[%clk 0:00:28.2]} 42... Rc6 {[%clk 0:00:38.6]} 43. Kg2
{[%clk 0:00:27.9]} 43... Rc1 {[%clk 0:00:31.1]} 44. Ra6+ {[%clk 0:00:17.7]}
44... Ke5 {[%clk 0:00:31]} 45. Be2 {[%clk 0:00:15.4]} 45... Kd4 {[%clk
0:00:28.4]} 46. Rb6 {[%clk 0:00:15]} 46... Rxa4 {[%clk 0:00:28.8]} 0-1

[Event "*** Titled Tuesday 3|2 Blitz"]
[Site "Chess.com"]
[Date "2015.11.03"]
[Round "3"]
[White "Er_is_geen_hoop_meer"]
[Black "Frolyanov_D"]
[Result "0-1"]
[WhiteElo "2402"]
[BlackElo "2406"]
[TimeControl "180+2"]
[EndTime "11:35:54 PST"]
[Termination "Frolyanov_D won by checkmate"]

1. d4 {[%clk 0:03:01.9]} 1... Nf6 {[%clk 0:03:00.1]} 2. c4 {[%clk 0:03:02.5]}
2... g6 {[%clk 0:03:00.2]} 3. g3 {[%clk 0:03:02.5]} 3... Bg7 {[%clk 0:03:00.4]}
4. Bg2 {[%clk 0:03:03.8]} 4... O-O {[%clk 0:03:00.8]} 5. Nf3 {[%clk 0:03:05]}
5... d5 {[%clk 0:02:58.8]} 6. cxd5 {[%clk 0:03:06.9]} 6... Nxd5 {[%clk
0:02:59.3]} 7. O-O {[%clk 0:03:06]} 7... Nb6 {[%clk 0:03:00]} 8. Nc3 {[%clk
0:03:06.3]} 8... Nc6 {[%clk 0:03:00.2]} 9. Bf4 {[%clk 0:03:06.2]} 9... Nxd4
{[%clk 0:02:39.2]} 10. Nxd4 {[%clk 0:03:08.1]} 10... Bxd4 {[%clk 0:02:19.3]} 11.
Nb5 {[%clk 0:03:03.2]} 11... e5 {[%clk 0:01:56.9]} 12. Bh6 {[%clk 0:02:42.7]}
12... Re8 {[%clk 0:01:56.6]} 13. e3 {[%clk 0:02:43.9]} 13... a6 {[%clk
0:01:37.8]} 14. exd4 {[%clk 0:02:43.8]} 14... axb5 {[%clk 0:01:38]} 15. dxe5
{[%clk 0:02:44.9]} 15... Qxd1 {[%clk 0:01:36.5]} 16. Rfxd1 {[%clk 0:02:46.8]}
16... c6 {[%clk 0:01:36.4]} 17. f4 {[%clk 0:02:36.6]} 17... Be6 {[%clk
0:01:35.9]} 18. b3 {[%clk 0:02:37.5]} 18... Bd5 {[%clk 0:01:31.2]} 19. Bg5
{[%clk 0:02:38.5]} 19... Bxg2 {[%clk 0:01:30.2]} 20. Kxg2 {[%clk 0:02:40.4]}
20... Nd5 {[%clk 0:01:30.8]} 21. Kf3 {[%clk 0:02:40.2]} 21... Kg7 {[%clk
0:01:26.9]} 22. a4 {[%clk 0:02:37]} 22... bxa4 {[%clk 0:01:18.9]} 23. Rxa4
{[%clk 0:02:38.9]} 23... Rxa4 {[%clk 0:01:15.5]} 24. bxa4 {[%clk 0:02:40.8]}
24... h6 {[%clk 0:01:12.6]} 25. Bh4 {[%clk 0:02:41.6]} 25... Ra8 {[%clk
0:01:06.6]} 26. Rd4 {[%clk 0:02:26.3]} 26... Ra5 {[%clk 0:01:05.8]} 27. g4
{[%clk 0:02:25.5]} 27... Rc5 {[%clk 0:01:02]} 28. f5 {[%clk 0:02:22.1]} 28...
Rc3+ {[%clk 0:01:01.8]} 29. Ke2 {[%clk 0:02:20.5]} 29... Re3+ {[%clk 0:00:59.3]}
30. Kd2 {[%clk 0:02:20.3]} 30... Rxe5 {[%clk 0:01:00]} 31. Bg3 {[%clk
0:02:14.7]} 31... Re8 {[%clk 0:00:58.8]} 32. Rd3 {[%clk 0:02:13.2]} 32... Re4
{[%clk 0:00:56.2]} 33. Rb3 {[%clk 0:02:11.4]} 33... Rxa4 {[%clk 0:00:49.2]} 34.
Rxb7 {[%clk 0:02:08]} 34... gxf5 {[%clk 0:00:40.4]} 35. gxf5 {[%clk 0:02:06.9]}
35... Kf6 {[%clk 0:00:41.3]} 36. Bf2 {[%clk 0:01:55.7]} 36... h5 {[%clk
0:00:36.1]} 37. Bc5 {[%clk 0:01:55]} 37... Rc4 {[%clk 0:00:33.3]} 38. Bf8 {[%clk
0:01:54]} 38... Kxf5 {[%clk 0:00:25.8]} 39. Rxf7+ {[%clk 0:01:54.4]} 39... Kg4
{[%clk 0:00:26.6]} 40. Bd6 {[%clk 0:01:54.8]} 40... Re4 {[%clk 0:00:24]} 41.
Rg7+ {[%clk 0:01:53.5]} 41... Kf3 {[%clk 0:00:20.6]} 42. Rg5 {[%clk 0:01:46.4]}
42... Rd4+ {[%clk 0:00:14.7]} 43. Kc1 {[%clk 0:01:45.9]} 43... Ne3 {[%clk
0:00:14.1]} 44. Bg3 {[%clk 0:01:37.9]} 44... h4 {[%clk 0:00:12.7]} 45. Bc7
{[%clk 0:01:37]} 45... Rg4 {[%clk 0:00:11.4]} 46. Rh5 {[%clk 0:01:33.8]} 46...
Kg2 {[%clk 0:00:11.3]} 47. Kd2 {[%clk 0:01:34.6]} 47... Nf1+ {[%clk 0:00:12]}
48. Ke1 {[%clk 0:01:35.6]} 48... Nxh2 {[%clk 0:00:13.3]} 49. Rc5 {[%clk
0:01:34.7]} 49... Nf3+ {[%clk 0:00:13.7]} 50. Ke2 {[%clk 0:01:36.1]} 50... Re4+
{[%clk 0:00:14.3]} 51. Kd3 {[%clk 0:01:37.6]} 51... Re7 {[%clk 0:00:14.7]} 52.
Rc2+ {[%clk 0:01:38.9]} 52... Kf1 {[%clk 0:00:15.1]} 53. Rc1+ {[%clk 0:01:37.2]}
53... Ne1+ {[%clk 0:00:15.8]} 54. Kd2 {[%clk 0:01:38.6]} 54... Rd7+ {[%clk
0:00:16.3]} 55. Ke3 {[%clk 0:01:39.4]} 55... Rxc7 {[%clk 0:00:16.4]} 56. Rc4
{[%clk 0:01:40.4]} 56... Re7+ {[%clk 0:00:17]} 57. Kf4 {[%clk 0:01:41.2]} 57...
h3 {[%clk 0:00:16.8]} 58. Kg3 {[%clk 0:01:43.1]} 58... Rh7 {[%clk 0:00:14.6]}
59. Kh2 {[%clk 0:01:43.2]} 59... Nf3+ {[%clk 0:00:15.1]} 60. Kh1 {[%clk
0:01:44]} 60... Rg7 {[%clk 0:00:11.8]} 61. Rc1+ {[%clk 0:01:42.8]} 61... Ke2
{[%clk 0:00:12.4]} 62. Rc2+ {[%clk 0:01:42.3]} 62... Ke3 {[%clk 0:00:12.6]} 63.
Rc3+ {[%clk 0:01:43.6]} 63... Ke4 {[%clk 0:00:13]} 64. Rc4+ {[%clk 0:01:45]}
64... Nd4 {[%clk 0:00:14]} 65. Kh2 {[%clk 0:01:44.7]} 65... Kd5 {[%clk
0:00:15.1]} 66. Rc1 {[%clk 0:01:45.4]} 66... c5 {[%clk 0:00:15.6]} 67. Kxh3
{[%clk 0:01:46.5]} 67... c4 {[%clk 0:00:16.6]} 68. Ra1 {[%clk 0:01:48.2]} 68...
c3 {[%clk 0:00:16.9]} 69. Ra5+ {[%clk 0:01:50.1]} 69... Kc4 {[%clk 0:00:17.5]}
70. Ra8 {[%clk 0:01:52]} 70... Kd3 {[%clk 0:00:18]} 71. Rc8 {[%clk 0:01:53]}
71... c2 {[%clk 0:00:19.2]} 72. Kh4 {[%clk 0:01:54]} 72... Kd2 {[%clk
0:00:20.2]} 73. Rd8 {[%clk 0:01:55.4]} 73... c1=Q {[%clk 0:00:20]} 74. Rxd4+
{[%clk 0:01:57.3]} 74... Ke3 {[%clk 0:00:21]} 75. Rd8 {[%clk 0:01:58.4]} 75...
Qh1# {[%clk 0:00:21.1]} 0-1